[Event "Titled Tuesday Blitz April 4 Late 2023"]
[White "Papayan, Oleg"]
[Black "Ozalp, Burak"]
[WhiteFideId "4193911"]
[BlackFideId "6314210"]
[WhiteElo "2153"]
[BlackElo "2106"]
[Result "1-0"]
[Round "09"]
[TimeControl "180+2"]
[Date "2023.04.04"]
[WhiteClock "0:00:08"]
[BlackClock "0:00:09"]

1. e4 {[%clk 0:03:00]}  e5 {[%clk 0:02:55]} 2. Nf3 {[%clk 0:03:00]}  Nc6 {[%clk 0:02:55]} 3. Bb5 {[%clk 0:03:00]}  a6 {[%clk 0:02:55]} 4. Bxc6 {[%clk 0:03:00]}  dxc6 {[%clk 0:02:55]} 5. O-O {[%clk 0:03:01]}  Bg4 {[%clk 0:02:44]} 6. h3 {[%clk 0:03:02]}  h5 {[%clk 0:02:32]} 7. d3 {[%clk 0:03:01]}  Bxf3 {[%clk 0:02:24]} 8. Qxf3 {[%clk 0:03:01]}  Bd6 {[%clk 0:02:11]} 9. Qg3 {[%clk 0:02:57]}  g6 {[%clk 0:02:00]} 10. Bg5 {[%clk 0:02:55]}  Qd7 {[%clk 0:01:53]} 11. Nd2 {[%clk 0:02:54]}  Ne7 {[%clk 0:01:52]} 12. Bf6 {[%clk 0:02:53]}  Rg8 {[%clk 0:01:51]} 13. Bxe5 {[%clk 0:02:47]}  Bxe5 {[%clk 0:01:44]} 14. Qxe5 {[%clk 0:02:47]}  O-O-O {[%clk 0:01:45]} 15. Nb3 {[%clk 0:02:45]}  b6 {[%clk 0:01:31]} 16. a4 {[%clk 0:02:44]}  a5 {[%clk 0:01:27]} 17. Rae1 {[%clk 0:02:35]}  c5 {[%clk 0:01:23]} 18. Re3 {[%clk 0:02:29]}  Nc6 {[%clk 0:01:22]} 19. Qf6 {[%clk 0:02:26]}  Rde8 {[%clk 0:01:14]} 20. c3 {[%clk 0:01:54]}  g5 {[%clk 0:01:14]} 21. Qf5 {[%clk 0:01:42]}  Qxf5 {[%clk 0:01:09]} 22. exf5 {[%clk 0:01:43]}  Rxe3 {[%clk 0:01:00]} 23. fxe3 {[%clk 0:01:44]}  Re8 {[%clk 0:00:59]} 24. Kf2 {[%clk 0:00:59]}  Re5 {[%clk 0:00:58]} 25. g4 {[%clk 0:01:00]}  h4 {[%clk 0:00:58]} 26. Nd2 {[%clk 0:00:52]}  Rd5 {[%clk 0:00:51]} 27. Ke2 {[%clk 0:00:47]}  Ne5 {[%clk 0:00:49]} 28. d4 {[%clk 0:00:47]}  cxd4 {[%clk 0:00:45]} 29. cxd4 {[%clk 0:00:47]}  Nc6 {[%clk 0:00:44]} 30. Ne4 {[%clk 0:00:41]}  b5 {[%clk 0:00:37]} 31. b3 {[%clk 0:00:35]}  Nb4 {[%clk 0:00:28]} 32. Nxg5 {[%clk 0:00:33]}  c5 {[%clk 0:00:28]} 33. Rc1 {[%clk 0:00:27]}  f6 {[%clk 0:00:20]} 34. Ne4 {[%clk 0:00:27]}  Kb8 {[%clk 0:00:18]} 35. Rxc5 {[%clk 0:00:24]}  bxa4 {[%clk 0:00:18]} 36. bxa4 {[%clk 0:00:22]}  Rd7 {[%clk 0:00:16]} 37. Nxf6 {[%clk 0:00:22]}  Rb7 {[%clk 0:00:16]} 38. Rxa5 {[%clk 0:00:20]}  Nc6 {[%clk 0:00:16]} 39. Rb5 {[%clk 0:00:20]}  Kc7 {[%clk 0:00:16]} 40. Nd5+ {[%clk 0:00:19]}  Kc8 {[%clk 0:00:15]} 41. f6 {[%clk 0:00:18]}  Rf7 {[%clk 0:00:14]} 42. Kd3 {[%clk 0:00:14]}  Rd7 {[%clk 0:00:10]} 43. e4 {[%clk 0:00:14]}  Rf7 {[%clk 0:00:08]} 44. e5 {[%clk 0:00:14]}  Na7 {[%clk 0:00:06]} 45. Rc5+ {[%clk 0:00:13]}  Kb7 {[%clk 0:00:05]} 46. Ke4 {[%clk 0:00:13]}  Nc6 {[%clk 0:00:06]} 47. Nb4 {[%clk 0:00:10]}  Na5 {[%clk 0:00:05]} 48. Rxa5 {[%clk 0:00:10]}  Kb6 {[%clk 0:00:05]} 49. Rb5+ {[%clk 0:00:11]}  Kc7 {[%clk 0:00:05]} 50. Kf5 {[%clk 0:00:11]}  Rf8 {[%clk 0:00:05]} 51. Nd5+ {[%clk 0:00:10]}  Kc6 {[%clk 0:00:04]} 52. Nf4 {[%clk 0:00:11]}  Rg8 {[%clk 0:00:04]} 53. d5+ {[%clk 0:00:12]}  Kc7 {[%clk 0:00:04]} 54. d6+ {[%clk 0:00:13]}  Kc6 {[%clk 0:00:04]} 55. f7 {[%clk 0:00:13]}  Rf8 {[%clk 0:00:05]} 56. Kg6 {[%clk 0:00:11]}  Rd8 {[%clk 0:00:04]} 57. e6 {[%clk 0:00:10]}  Kxd6 {[%clk 0:00:04]} 58. Rd5+ {[%clk 0:00:08]}  Ke7 {[%clk 0:00:04]} 59. Rxd8 {[%clk 0:00:09]}  Kxd8 {[%clk 0:00:05]} 60. f8=Q+ {[%clk 0:00:09]}  Kc7 {[%clk 0:00:06]} 61. e7 {[%clk 0:00:08]}  Kd6 {[%clk 0:00:07]} 62. e8=Q+ {[%clk 0:00:08]}  Kc7 {[%clk 0:00:08]} 63. Qee7+ {[%clk 0:00:08]}  Kb6 {[%clk 0:00:09]} 64. Qc5+ {[%clk 0:00:08]}  Ka6 {[%clk 0:00:09]} 65. Qfd6+ {[%clk 0:00:08]} 1-0


[Site "https://www.chess.com"]

[Event "Titled Tuesday Blitz April 4 Late 2023"]
[White "Rios Escobar, Adan"]
[Black "Rodriguez Santiago, Jaime"]
[WhiteFideId "3403645"]
[BlackFideId "3100898"]
[WhiteElo "2467"]
[BlackElo "2025"]
[Result "1-0"]
[Round "09"]
[TimeControl "180+2"]
[Date "2023.04.04"]
[WhiteClock "0:00:06"]
[BlackClock "0:01:00"]

1. d4 {[%clk 0:00:18]}  Nf6 {[%clk 0:02:59]} 2. g3 {[%clk 0:00:18]}  e6 {[%clk 0:02:58]} 3. c4 {[%clk 0:00:18]}  d5 {[%clk 0:02:58]} 4. Nf3 {[%clk 0:00:16]}  dxc4 {[%clk 0:02:57]} 5. Bg2 {[%clk 0:00:17]}  c5 {[%clk 0:02:56]} 6. O-O {[%clk 0:00:17]}  Nc6 {[%clk 0:02:56]} 7. dxc5 {[%clk 0:00:17]}  Qxd1 {[%clk 0:02:55]} 8. Rxd1 {[%clk 0:00:18]}  Bxc5 {[%clk 0:02:54]} 9. Nbd2 {[%clk 0:00:19]}  c3 {[%clk 0:02:55]} 10. bxc3 {[%clk 0:00:20]}  O-O {[%clk 0:02:55]} 11. Nb3 {[%clk 0:00:20]}  Be7 {[%clk 0:02:52]} 12. Bb2 {[%clk 0:00:21]}  a5 {[%clk 0:02:42]} 13. c4 {[%clk 0:00:20]}  a4 {[%clk 0:02:42]} 14. Nbd4 {[%clk 0:00:20]}  a3 {[%clk 0:02:43]} 15. Bc3 {[%clk 0:00:20]}  Nxd4 {[%clk 0:02:41]} 16. Nxd4 {[%clk 0:00:21]}  Ra4 {[%clk 0:02:39]} 17. Nb5 {[%clk 0:00:13]}  Rxc4 {[%clk 0:02:35]} 18. Be5 {[%clk 0:00:14]}  Rc5 {[%clk 0:02:25]} 19. Bd6 {[%clk 0:00:14]}  Bxd6 {[%clk 0:02:21]} 20. Nxd6 {[%clk 0:00:15]}  Nd5 {[%clk 0:02:06]} 21. Rd3 {[%clk 0:00:13]}  Ra5 {[%clk 0:01:51]} 22. Rb1 {[%clk 0:00:12]}  b6 {[%clk 0:01:24]} 23. Nc4 {[%clk 0:00:12]}  Ba6 {[%clk 0:01:18]} 24. Nxa5 {[%clk 0:00:10]}  Bxd3 {[%clk 0:01:18]} 25. exd3 {[%clk 0:00:10]}  bxa5 {[%clk 0:01:17]} 26. Rb5 {[%clk 0:00:10]}  a4 {[%clk 0:01:01]} 27. Bxd5 {[%clk 0:00:07]}  exd5 {[%clk 0:01:01]} 28. Ra5 {[%clk 0:00:06]}  Rc8 {[%clk 0:00:59]} 29. Rxa4 {[%clk 0:00:06]}  Rc3 {[%clk 0:01:00]} 30. Ra8+ {[%clk 0:00:06]} 1-0


[Site "https://www.chess.com"]

[Event "Titled Tuesday Blitz April 4 Late 2023"]
[White "Novikova, Galina"]
[Black "Jovic, Stanoje"]
[WhiteFideId "4157095"]
[BlackFideId "905020"]
[WhiteElo "1953"]
[BlackElo "2236"]
[Result "0-1"]
[Round "09"]
[TimeControl "180+2"]
[Date "2023.04.04"]
[WhiteClock "0:00:04"]
[BlackClock "0:00:46"]

1. e4 {[%clk 0:03:00]}  c6 {[%clk 0:02:59]} 2. d4 {[%clk 0:02:59]}  d5 {[%clk 0:02:59]} 3. e5 {[%clk 0:02:59]}  c5 {[%clk 0:02:59]} 4. dxc5 {[%clk 0:02:58]}  e6 {[%clk 0:02:59]} 5. Qg4 {[%clk 0:02:57]}  h5 {[%clk 0:02:57]} 6. Qg3 {[%clk 0:02:54]}  Ne7 {[%clk 0:02:54]} 7. Nf3 {[%clk 0:02:49]}  Nf5 {[%clk 0:02:50]} 8. Qh3 {[%clk 0:02:44]}  Bxc5 {[%clk 0:02:48]} 9. Bd3 {[%clk 0:02:43]}  Nc6 {[%clk 0:02:41]} 10. g4 {[%clk 0:02:37]}  Nfd4 {[%clk 0:02:33]} 11. gxh5 {[%clk 0:02:34]}  Nxf3+ {[%clk 0:02:29]} 12. Qxf3 {[%clk 0:02:34]}  Nxe5 {[%clk 0:02:28]} 13. Qg3 {[%clk 0:02:24]}  Qf6 {[%clk 0:02:21]} 14. Bb5+ {[%clk 0:02:21]}  Bd7 {[%clk 0:02:16]} 15. Bxd7+ {[%clk 0:02:21]}  Kxd7 {[%clk 0:02:16]} 16. Nc3 {[%clk 0:01:45]}  Rxh5 {[%clk 0:02:10]} 17. Bf4 {[%clk 0:01:39]}  Rf5 {[%clk 0:01:52]} 18. Be3 {[%clk 0:00:57]}  Nf3+ {[%clk 0:01:43]} 19. Kf1 {[%clk 0:00:54]}  Bxe3 {[%clk 0:01:36]} 20. fxe3 {[%clk 0:00:54]}  Rh8 {[%clk 0:01:18]} 21. Ke2 {[%clk 0:00:49]}  Rh6 {[%clk 0:01:09]} 22. Nb5 {[%clk 0:00:37]}  Ne5 {[%clk 0:00:55]} 23. Nd4 {[%clk 0:00:31]}  Rg6 {[%clk 0:00:51]} 24. Nxf5 {[%clk 0:00:27]}  Rxg3 {[%clk 0:00:50]} 25. Nxg3 {[%clk 0:00:28]}  Qf3+ {[%clk 0:00:48]} 26. Kd2 {[%clk 0:00:29]}  Nc4+ {[%clk 0:00:47]} 27. Kc1 {[%clk 0:00:02]}  Qxe3+ {[%clk 0:00:47]} 28. Kb1 {[%clk 0:00:02]}  Nd2+ {[%clk 0:00:47]} 29. Kc1 {[%clk 0:00:03]}  Nb3+ {[%clk 0:00:46]} 30. Kb1 {[%clk 0:00:03]}  Qc1+ {[%clk 0:00:46]} 31. Rxc1 {[%clk 0:00:04]}  Nd2# {[%clk 0:00:46]} 0-1


[Site "https://www.chess.com"]

[Event "Titled Tuesday Blitz April 4 Late 2023"]
[White "Wang, Alexander J"]
[Black "Golubev, Mikhail"]
[WhiteFideId "30955270"]
[BlackFideId "14100983"]
[WhiteElo "2306"]
[BlackElo "2374"]
[Result "1-0"]
[Round "09"]
[TimeControl "180+2"]
[Date "2023.04.04"]
[WhiteClock "0:00:08"]
[BlackClock "0:00:02"]

1. e4 {[%clk 0:03:00]}  c5 {[%clk 0:02:58]} 2. Nf3 {[%clk 0:03:00]}  d6 {[%clk 0:02:58]} 3. d4 {[%clk 0:02:59]}  cxd4 {[%clk 0:02:58]} 4. Nxd4 {[%clk 0:03:00]}  Nf6 {[%clk 0:02:58]} 5. Nc3 {[%clk 0:03:01]}  g6 {[%clk 0:02:58]} 6. g3 {[%clk 0:03:01]}  Bg7 {[%clk 0:02:58]} 7. Bg2 {[%clk 0:03:01]}  O-O {[%clk 0:02:57]} 8. O-O {[%clk 0:03:00]}  Nc6 {[%clk 0:02:56]} 9. Nde2 {[%clk 0:02:59]}  Rb8 {[%clk 0:02:55]} 10. a4 {[%clk 0:02:58]}  a6 {[%clk 0:02:55]} 11. h3 {[%clk 0:02:58]}  b5 {[%clk 0:02:55]} 12. axb5 {[%clk 0:02:57]}  axb5 {[%clk 0:02:56]} 13. Rb1 {[%clk 0:02:56]}  b4 {[%clk 0:02:48]} 14. Nd5 {[%clk 0:02:54]}  Nd7 {[%clk 0:02:43]} 15. Ne3 {[%clk 0:02:43]}  Ba6 {[%clk 0:02:33]} 16. b3 {[%clk 0:02:33]}  Bxe2 {[%clk 0:02:23]} 17. Qxe2 {[%clk 0:02:32]}  Nd4 {[%clk 0:02:24]} 18. Qd1 {[%clk 0:02:25]}  Nb5 {[%clk 0:02:21]} 19. Bb2 {[%clk 0:02:21]}  Bxb2 {[%clk 0:02:19]} 20. Rxb2 {[%clk 0:02:22]}  Nc3 {[%clk 0:02:19]} 21. Qd2 {[%clk 0:02:02]}  Nf6 {[%clk 0:02:19]} 22. f3 {[%clk 0:02:00]}  Qb6 {[%clk 0:01:58]} 23. Kh2 {[%clk 0:01:52]}  Ra8 {[%clk 0:01:56]} 24. Nc4 {[%clk 0:01:47]}  Qc5 {[%clk 0:01:53]} 25. Qe3 {[%clk 0:01:32]}  Qxe3 {[%clk 0:01:46]} 26. Nxe3 {[%clk 0:01:33]}  Rfc8 {[%clk 0:01:37]} 27. g4 {[%clk 0:01:19]}  Ra7 {[%clk 0:01:14]} 28. Re1 {[%clk 0:01:12]}  Nd7 {[%clk 0:01:06]} 29. Nd5 {[%clk 0:00:57]}  Nxd5 {[%clk 0:00:41]} 30. exd5 {[%clk 0:00:58]}  Kf8 {[%clk 0:00:41]} 31. Re4 {[%clk 0:00:46]}  Rac7 {[%clk 0:00:27]} 32. Rxb4 {[%clk 0:00:44]}  Rxc2 {[%clk 0:00:27]} 33. Rxc2 {[%clk 0:00:44]}  Rxc2 {[%clk 0:00:25]} 34. f4 {[%clk 0:00:38]}  Nc5 {[%clk 0:00:20]} 35. Rb8+ {[%clk 0:00:37]}  Kg7 {[%clk 0:00:19]} 36. b4 {[%clk 0:00:32]}  Rb2 {[%clk 0:00:17]} 37. b5 {[%clk 0:00:26]}  h6 {[%clk 0:00:14]} 38. Kg3 {[%clk 0:00:23]}  g5 {[%clk 0:00:12]} 39. f5 {[%clk 0:00:22]}  Kf6 {[%clk 0:00:11]} 40. Rh8 {[%clk 0:00:20]}  Rb3+ {[%clk 0:00:05]} 41. Kh2 {[%clk 0:00:20]}  Rxb5 {[%clk 0:00:05]} 42. Rxh6+ {[%clk 0:00:20]}  Ke5 {[%clk 0:00:05]} 43. Rh7 {[%clk 0:00:18]}  Kf6 {[%clk 0:00:03]} 44. Kg3 {[%clk 0:00:16]}  Rb3+ {[%clk 0:00:02]} 45. Kh2 {[%clk 0:00:16]}  Rb2 {[%clk 0:00:01]} 46. Kg3 {[%clk 0:00:16]}  Nd3 {[%clk 0:00:02]} 47. Bf3 {[%clk 0:00:14]}  Nf4 {[%clk 0:00:02]} 48. h4 {[%clk 0:00:12]}  Nd3 {[%clk 0:00:02]} 49. Rh6+ {[%clk 0:00:10]}  Ke5 {[%clk 0:00:02]} 50. hxg5 {[%clk 0:00:11]}  Nf4 {[%clk 0:00:02]} 51. Rh7 {[%clk 0:00:09]}  Rb3 {[%clk 0:00:01]} 52. Rxf7 {[%clk 0:00:07]}  Ne2+ {[%clk 0:00:02]} 53. Kf2 {[%clk 0:00:08]}  Nd4 {[%clk 0:00:02]} 54. Rxe7+ {[%clk 0:00:08]} 1-0


[Site "https://www.chess.com"]

[Event "Titled Tuesday Blitz April 4 Late 2023"]
[White "Pein, Jonathan"]
[Black "olga-belka"]
[WhiteFideId "417092"]
[WhiteElo "2151"]
[BlackElo "2298"]
[Result "1-0"]
[Round "09"]
[TimeControl "180+2"]
[Date "2023.04.04"]
[WhiteClock "0:00:20"]
[BlackClock "0:01:02"]

1. e4 {[%clk 0:02:56]}  c5 {[%clk 0:02:59]} 2. Nf3 {[%clk 0:02:52]}  d6 {[%clk 0:02:58]} 3. d4 {[%clk 0:02:52]}  cxd4 {[%clk 0:02:58]} 4. Nxd4 {[%clk 0:02:53]}  Nf6 {[%clk 0:02:58]} 5. Nc3 {[%clk 0:02:51]}  a6 {[%clk 0:02:58]} 6. g3 {[%clk 0:02:48]}  e5 {[%clk 0:02:57]} 7. Nb3 {[%clk 0:02:48]}  Be7 {[%clk 0:02:57]} 8. Bg5 {[%clk 0:02:48]}  Be6 {[%clk 0:02:54]} 9. Bg2 {[%clk 0:02:46]}  Nbd7 {[%clk 0:02:51]} 10. O-O {[%clk 0:02:44]}  h6 {[%clk 0:02:46]} 11. Be3 {[%clk 0:02:41]}  O-O {[%clk 0:02:43]} 12. h3 {[%clk 0:02:41]}  b5 {[%clk 0:02:43]} 13. Nd5 {[%clk 0:02:34]}  Bxd5 {[%clk 0:02:34]} 14. exd5 {[%clk 0:02:35]}  Nb6 {[%clk 0:02:34]} 15. Na5 {[%clk 0:02:28]}  Nc4 {[%clk 0:02:28]} 16. Nxc4 {[%clk 0:02:12]}  bxc4 {[%clk 0:02:26]} 17. Qe2 {[%clk 0:01:55]}  Qc8 {[%clk 0:02:16]} 18. b3 {[%clk 0:01:49]}  Bd8 {[%clk 0:02:08]} 19. bxc4 {[%clk 0:01:26]}  Ba5 {[%clk 0:02:07]} 20. Rab1 {[%clk 0:01:17]}  Qc7 {[%clk 0:02:03]} 21. c5 {[%clk 0:01:16]}  dxc5 {[%clk 0:02:01]} 22. d6 {[%clk 0:01:16]}  Qxd6 {[%clk 0:01:56]} 23. Bxa8 {[%clk 0:01:16]}  Rxa8 {[%clk 0:01:57]} 24. Rfd1 {[%clk 0:01:12]}  Qe6 {[%clk 0:01:55]} 25. Kg2 {[%clk 0:01:08]}  Bc3 {[%clk 0:01:39]} 26. Bxc5 {[%clk 0:01:01]}  Qc6+ {[%clk 0:01:37]} 27. Qf3 {[%clk 0:01:01]}  e4 {[%clk 0:01:34]} 28. Qxc3 {[%clk 0:01:00]}  Rc8 {[%clk 0:01:25]} 29. Rb3 {[%clk 0:00:28]}  Qxc5 {[%clk 0:01:14]} 30. Rd8+ {[%clk 0:00:27]}  Kh7 {[%clk 0:01:09]} 31. Rxc8 {[%clk 0:00:27]}  Qd5 {[%clk 0:01:06]} 32. Qc4 {[%clk 0:00:24]}  Qd1 {[%clk 0:01:02]} 33. Re3 {[%clk 0:00:20]} 1-0


[Site "https://www.chess.com"]

[Event "Titled Tuesday Blitz April 4 Late 2023"]
[White "Georg, Heinz"]
[Black "Gerbelli Neto, Eduardo"]
[WhiteFideId "4607295"]
[BlackFideId "2103281"]
[WhiteElo "2257"]
[BlackElo "2178"]
[Result "0-1"]
[Round "09"]
[TimeControl "180+2"]
[Date "2023.04.04"]
[WhiteClock "0:00:02"]
[BlackClock "0:00:14"]

1. e4 {[%clk 0:03:00]}  e5 {[%clk 0:02:58]} 2. Nf3 {[%clk 0:03:00]}  Nc6 {[%clk 0:02:55]} 3. Nc3 {[%clk 0:03:00]}  Nf6 {[%clk 0:02:54]} 4. d4 {[%clk 0:03:00]}  exd4 {[%clk 0:02:51]} 5. Nd5 {[%clk 0:03:00]}  Nb4 {[%clk 0:02:47]} 6. Bc4 {[%clk 0:02:59]}  Nbxd5 {[%clk 0:02:46]} 7. exd5 {[%clk 0:02:59]}  Bb4+ {[%clk 0:02:43]} 8. Bd2 {[%clk 0:02:58]}  Qe7+ {[%clk 0:02:43]} 9. Qe2 {[%clk 0:02:58]}  Bxd2+ {[%clk 0:02:43]} 10. Kxd2 {[%clk 0:02:58]}  Qxe2+ {[%clk 0:02:42]} 11. Kxe2 {[%clk 0:02:58]}  d6 {[%clk 0:02:37]} 12. Nxd4 {[%clk 0:02:57]}  O-O {[%clk 0:02:37]} 13. Rhe1 {[%clk 0:02:56]}  Bd7 {[%clk 0:02:29]} 14. Kf1 {[%clk 0:02:53]}  Rfe8 {[%clk 0:02:27]} 15. f3 {[%clk 0:02:51]}  Kf8 {[%clk 0:02:24]} 16. Kf2 {[%clk 0:02:51]}  Re5 {[%clk 0:02:15]} 17. Rxe5 {[%clk 0:02:41]}  dxe5 {[%clk 0:02:15]} 18. Nb3 {[%clk 0:02:41]}  b5 {[%clk 0:02:06]} 19. Bf1 {[%clk 0:02:41]}  Nxd5 {[%clk 0:02:02]} 20. Nc5 {[%clk 0:02:40]}  Bc6 {[%clk 0:01:59]} 21. Rd1 {[%clk 0:02:38]}  Nb6 {[%clk 0:01:50]} 22. Na6 {[%clk 0:02:31]}  Rc8 {[%clk 0:01:39]} 23. b3 {[%clk 0:02:29]}  Ke7 {[%clk 0:01:38]} 24. Rd3 {[%clk 0:02:15]}  Be8 {[%clk 0:01:34]} 25. Re3 {[%clk 0:01:45]}  Kf6 {[%clk 0:01:32]} 26. Rd3 {[%clk 0:01:44]}  c6 {[%clk 0:01:23]} 27. g3 {[%clk 0:01:38]}  Bd7 {[%clk 0:01:13]} 28. c4 {[%clk 0:01:35]}  Bf5 {[%clk 0:01:09]} 29. Rd2 {[%clk 0:01:20]}  bxc4 {[%clk 0:01:09]} 30. bxc4 {[%clk 0:01:19]}  Ke7 {[%clk 0:01:08]} 31. g4 {[%clk 0:01:17]}  Be6 {[%clk 0:01:07]} 32. c5 {[%clk 0:01:16]}  Nd5 {[%clk 0:01:04]} 33. Rb2 {[%clk 0:01:16]}  Rd8 {[%clk 0:00:45]} 34. Nb8 {[%clk 0:01:11]}  Bd7 {[%clk 0:00:28]} 35. Rb7 {[%clk 0:01:08]}  Ke8 {[%clk 0:00:28]} 36. Bc4 {[%clk 0:00:36]}  Nf4 {[%clk 0:00:23]} 37. Kg3 {[%clk 0:00:13]}  f6 {[%clk 0:00:23]} 38. h4 {[%clk 0:00:07]}  g6 {[%clk 0:00:23]} 39. g5 {[%clk 0:00:06]}  fxg5 {[%clk 0:00:22]} 40. hxg5 {[%clk 0:00:06]}  Nd5 {[%clk 0:00:16]} 41. Bxd5 {[%clk 0:00:05]}  cxd5 {[%clk 0:00:16]} 42. c6 {[%clk 0:00:05]}  Bf5 {[%clk 0:00:13]} 43. c7 {[%clk 0:00:05]}  Rc8 {[%clk 0:00:13]} 44. Nc6 {[%clk 0:00:05]}  Kd7 {[%clk 0:00:14]} 45. Nxa7 {[%clk 0:00:02]}  Rxc7 {[%clk 0:00:14]} 46. Rxc7+ {[%clk 0:00:01]}  Kxc7 {[%clk 0:00:15]} 47. Nb5+ {[%clk 0:00:01]}  Kc6 {[%clk 0:00:14]} 48. Nc3 {[%clk 0:00:02]}  d4 {[%clk 0:00:14]} 0-1


[Site "https://www.chess.com"]

[Event "Titled Tuesday Blitz April 4 Late 2023"]
[White "Antonova, Nadezhda"]
[Black "Qiao, Cindy"]
[WhiteFideId "14700182"]
[BlackFideId "2620243"]
[WhiteElo "1765"]
[BlackElo "1777"]
[Result "0-1"]
[Round "09"]
[TimeControl "180+2"]
[Date "2023.04.04"]
[WhiteClock "0:00:02"]
[BlackClock "0:00:26"]

1. Nf3 {[%clk 0:02:57]}  d5 {[%clk 0:02:47]} 2. b3 {[%clk 0:02:57]}  Nf6 {[%clk 0:02:47]} 3. Bb2 {[%clk 0:02:57]}  e6 {[%clk 0:02:47]} 4. g3 {[%clk 0:02:57]}  Be7 {[%clk 0:02:48]} 5. Bg2 {[%clk 0:02:56]}  O-O {[%clk 0:02:48]} 6. O-O {[%clk 0:02:57]}  b6 {[%clk 0:02:49]} 7. c4 {[%clk 0:02:55]}  Bb7 {[%clk 0:02:49]} 8. Nc3 {[%clk 0:02:55]}  Nbd7 {[%clk 0:02:49]} 9. d4 {[%clk 0:02:55]}  c5 {[%clk 0:02:49]} 10. cxd5 {[%clk 0:02:54]}  Nxd5 {[%clk 0:02:49]} 11. Re1 {[%clk 0:02:49]}  N7f6 {[%clk 0:02:48]} 12. e3 {[%clk 0:02:23]}  Rc8 {[%clk 0:02:45]} 13. Rc1 {[%clk 0:02:22]}  Nxc3 {[%clk 0:02:38]} 14. Bxc3 {[%clk 0:02:19]}  Ne4 {[%clk 0:02:38]} 15. Ba1 {[%clk 0:02:10]}  Bf6 {[%clk 0:02:28]} 16. Ne5 {[%clk 0:01:48]}  Bxe5 {[%clk 0:02:26]} 17. dxe5 {[%clk 0:01:48]}  Qc7 {[%clk 0:02:14]} 18. Qc2 {[%clk 0:01:35]}  Ng5 {[%clk 0:01:55]} 19. e4 {[%clk 0:01:32]}  h6 {[%clk 0:01:47]} 20. f4 {[%clk 0:01:27]}  Nh7 {[%clk 0:01:45]} 21. h3 {[%clk 0:01:13]}  Rfd8 {[%clk 0:01:44]} 22. Rcd1 {[%clk 0:01:12]}  Nf8 {[%clk 0:01:38]} 23. Qc3 {[%clk 0:00:57]}  b5 {[%clk 0:01:21]} 24. Rd6 {[%clk 0:00:54]}  c4 {[%clk 0:01:10]} 25. Red1 {[%clk 0:00:47]}  Qc5+ {[%clk 0:01:01]} 26. Kh2 {[%clk 0:00:46]}  Re8 {[%clk 0:00:56]} 27. b4 {[%clk 0:00:30]}  Qc7 {[%clk 0:00:49]} 28. a3 {[%clk 0:00:29]}  Qb8 {[%clk 0:00:47]} 29. Qd4 {[%clk 0:00:23]}  Qa8 {[%clk 0:00:47]} 30. Bc3 {[%clk 0:00:23]}  a6 {[%clk 0:00:44]} 31. Rd2 {[%clk 0:00:22]}  Ng6 {[%clk 0:00:38]} 32. h4 {[%clk 0:00:19]}  Ne7 {[%clk 0:00:38]} 33. Rd7 {[%clk 0:00:15]}  Nc6 {[%clk 0:00:38]} 34. Qe3 {[%clk 0:00:10]}  Rcd8 {[%clk 0:00:38]} 35. f5 {[%clk 0:00:04]}  Rxd7 {[%clk 0:00:34]} 36. Rxd7 {[%clk 0:00:03]}  Rd8 {[%clk 0:00:34]} 37. Rxd8+ {[%clk 0:00:03]}  Qxd8 {[%clk 0:00:35]} 38. f6 {[%clk 0:00:03]}  Qd3 {[%clk 0:00:30]} 39. Qxd3 {[%clk 0:00:01]}  cxd3 {[%clk 0:00:30]} 40. Bd2 {[%clk 0:00:01]}  Nxe5 {[%clk 0:00:30]} 41. fxg7 {[%clk 0:00:01]}  Kxg7 {[%clk 0:00:30]} 42. Kg1 {[%clk 0:00:02]}  Nc4 {[%clk 0:00:30]} 43. Bf4 {[%clk 0:00:01]}  d2 {[%clk 0:00:27]} 44. Bf3 {[%clk 0:00:01]}  Bxe4 {[%clk 0:00:27]} 45. Bd1 {[%clk 0:00:02]}  Nb2 {[%clk 0:00:26]} 0-1


[Site "https://www.chess.com"]

[Event "Titled Tuesday Blitz April 4 Late 2023"]
[White "Weisz, Bryan"]
[Black "Manu_ChessExcelsior"]
[WhiteFideId "30934133"]
[WhiteElo "2361"]
[BlackElo "2159"]
[Result "1-0"]
[Round "09"]
[TimeControl "180+2"]
[Date "2023.04.04"]
[WhiteClock "0:00:42"]
[BlackClock "0:00:20"]

1. c4 {[%clk 0:02:59]}  e6 {[%clk 0:02:58]} 2. Nc3 {[%clk 0:02:59]}  d5 {[%clk 0:02:58]} 3. d4 {[%clk 0:03:00]}  a6 {[%clk 0:02:56]} 4. Nf3 {[%clk 0:02:59]}  dxc4 {[%clk 0:02:55]} 5. e4 {[%clk 0:02:48]}  b5 {[%clk 0:02:51]} 6. a4 {[%clk 0:02:41]}  b4 {[%clk 0:02:47]} 7. Nb1 {[%clk 0:02:40]}  c5 {[%clk 0:02:44]} 8. Bxc4 {[%clk 0:02:31]}  Bb7 {[%clk 0:02:33]} 9. d5 {[%clk 0:02:28]}  exd5 {[%clk 0:02:30]} 10. exd5 {[%clk 0:02:27]}  Bd6 {[%clk 0:02:19]} 11. O-O {[%clk 0:02:26]}  Ne7 {[%clk 0:02:17]} 12. b3 {[%clk 0:02:21]}  O-O {[%clk 0:02:16]} 13. Bb2 {[%clk 0:02:21]}  Nxd5 {[%clk 0:02:08]} 14. Nbd2 {[%clk 0:02:14]}  Nc3 {[%clk 0:01:51]} 15. Qc2 {[%clk 0:02:05]}  Qf6 {[%clk 0:01:38]} 16. Rac1 {[%clk 0:01:53]}  Bf4 {[%clk 0:01:18]} 17. Bxc3 {[%clk 0:01:37]}  bxc3 {[%clk 0:01:17]} 18. Qxc3 {[%clk 0:01:35]}  Bxf3 {[%clk 0:01:09]} 19. Qxf3 {[%clk 0:01:28]}  Bxd2 {[%clk 0:01:00]} 20. Qxa8 {[%clk 0:01:27]}  Bxc1 {[%clk 0:00:59]} 21. Rxc1 {[%clk 0:01:25]}  Rd8 {[%clk 0:00:47]} 22. g3 {[%clk 0:01:04]}  h5 {[%clk 0:00:33]} 23. Qa7 {[%clk 0:00:57]}  g6 {[%clk 0:00:30]} 24. Qxc5 {[%clk 0:00:56]}  Kg7 {[%clk 0:00:29]} 25. Re1 {[%clk 0:00:46]}  Nc6 {[%clk 0:00:25]} 26. Bxa6 {[%clk 0:00:43]}  Ne5 {[%clk 0:00:20]} 27. Qxe5 {[%clk 0:00:42]} 1-0


[Site "https://www.chess.com"]

[Event "Titled Tuesday Blitz April 4 Late 2023"]
[White "Mirimanian, Hayk"]
[Black "Michalski, Olaf"]
[WhiteFideId "4700180"]
[BlackFideId "1106740"]
[WhiteElo "2280"]
[BlackElo "2173"]
[Result "1-0"]
[Round "09"]
[TimeControl "180+2"]
[Date "2023.04.04"]
[WhiteClock "0:01:44"]
[BlackClock "0:00:02"]

1. e4 {[%clk 0:02:41]}  c5 {[%clk 0:02:59]} 2. Nf3 {[%clk 0:02:40]}  a6 {[%clk 0:03:00]} 3. g3 {[%clk 0:02:33]}  Nc6 {[%clk 0:02:51]} 4. Bg2 {[%clk 0:02:32]}  g6 {[%clk 0:02:51]} 5. O-O {[%clk 0:02:33]}  Bg7 {[%clk 0:02:51]} 6. c3 {[%clk 0:02:32]}  e5 {[%clk 0:02:48]} 7. Na3 {[%clk 0:02:28]}  Nge7 {[%clk 0:02:36]} 8. Nc2 {[%clk 0:02:23]}  O-O {[%clk 0:02:27]} 9. d4 {[%clk 0:02:20]}  cxd4 {[%clk 0:01:50]} 10. cxd4 {[%clk 0:02:21]}  exd4 {[%clk 0:01:35]} 11. Nfxd4 {[%clk 0:02:21]}  d5 {[%clk 0:01:02]} 12. Bg5 {[%clk 0:02:14]}  Qb6 {[%clk 0:00:35]} 13. Nxc6 {[%clk 0:02:08]}  Nxc6 {[%clk 0:00:28]} 14. exd5 {[%clk 0:02:09]}  Ne5 {[%clk 0:00:19]} 15. b4 {[%clk 0:01:59]}  Bg4 {[%clk 0:00:18]} 16. Qb1 {[%clk 0:01:45]}  Nf3+ {[%clk 0:00:14]} 17. Kh1 {[%clk 0:01:44]}  Bxa1 {[%clk 0:00:05]} 18. Qxa1 {[%clk 0:01:45]}  f6 {[%clk 0:00:03]} 19. Be3 {[%clk 0:01:44]}  Qd6 {[%clk 0:00:02]} 20. h3 {[%clk 0:01:44]} 1-0


[Site "https://www.chess.com"]